fUSD/lending_fUSD_20250519
["ID","MTS","AMOUNT","RATE_DAILY","PERIOD"]
[361657962,1747672232998,-4660.4239462,0.00011898,2]
[361657964,1747672233008,-256.16920981,0.00011899,2]
[361657966,1747672233018,-187.95496351,0.00011899,2]
[361657968,1747672233027,-4660.4239462,0.00011899,2]
[361657970,1747672233037,-35935.449,0.000119,2]
[361657972,1747672233046,-40264.62873763,0.000119,2]
[361657975,1747672233063,-56268.20827473,0.000119,2]
[361657977,1747672233076,-20192.024934,0.000119,2]
[361657979,1747672233088,-730.54091556,0.000119,2]
[361657982,1747672233110,-2312.1,0.000119,2]
[361657985,1747672233123,-547.25853702,0.000119,2]
[361658251,1747672237942,1000.0,0.00010809,2]
[361658254,1747672238088,-1000.0,0.000118,2]
[361658255,1747672238098,-3767.5888,0.000118,2]
[361658256,1747672238112,-3274.62646615,0.000119,2]
[361658257,1747672238245,-10003.83180896,0.000119,2]
[361658258,1747672238257,-4831.18865516,0.000119,2]
[361658259,1747672238268,-386.42359073,0.000119,2]
[361658260,1747672238280,-68065.36658006,0.000119,2]
[361658261,1747672238290,-503.46088422,0.000119,2]
[361658262,1747672238300,-5000.0,0.000119,2]
[361658263,1747672238311,-168.76908572,0.000119,2]
[361658264,1747672238323,-354.68726188,0.000119,2]
[361658265,1747672238332,-150.0,0.000119,2]
[361658266,1747672238343,-1426.76255512,0.000119,2]
[361658267,1747672238352,-300.0,0.000119,4]
[361658269,1747672238362,-333.74903702,0.000119,2]
[361658271,1747672238371,-338.66818763,0.000119,2]
[361658272,1747672238381,-1640.75220789,0.000119,2]
[361658273,1747672238391,-580.60992444,0.000119,2]
[361658274,1747672238402,-4660.4239462,0.000119,2]
[361658275,1747672238411,-2000.0,0.00011904,2]
[361658276,1747672238421,-200.0,0.00011904,2]
[361658277,1747672238430,-368.24367244,0.00011918,2]
[361658278,1747672238439,-368.24367244,0.00011973,2]
[361658279,1747672238448,-498.0,0.00011973,2]
[361658280,1747672238458,-306.56440598,0.00011973,2]
[361658281,1747672238467,-500.0,0.00011973,2]
[361658282,1747672238476,-500.0,0.00011973,2]
[361658283,1747672238485,-500.0,0.00011973,2]
[361658284,1747672238495,-500.0,0.00011973,2]
[361658285,1747672238504,-500.0,0.00011973,2]
[361658286,1747672238513,-500.0,0.00011973,2]
[361658287,1747672238522,-216.57868868,0.0001199,2]
[361658288,1747672238531,-216.57868868,0.0001199,2]
[361658289,1747672238541,-216.57868868,0.0001199,2]
[361658290,1747672238550,-23465.4041574,0.00011992,2]
[361658291,1747672238559,-7233.118618,0.00011992,2]
[361658292,1747672238568,-2237.9921253,0.00011992,2]
[361658293,1747672238577,-737.7344771,0.00011992,2]
[361658294,1747672238586,-2370.3133391,0.00011992,2]
[361658295,1747672238595,-1830.723157,0.00011992,2]
[361658296,1747672238605,-14886.3922505,0.00011992,2]
[361658297,1747672238615,-780.39678613,0.00011992,2]
[361658298,1747672238624,-302.4266095,0.00011992,2]
[361658299,1747672238634,-164.14492611,0.00012,2]
[361658300,1747672238649,-297.36348839,0.00012,2]
[361658301,1747672238660,-30596.63584982,0.00012,2]
[361658305,1747672240530,-385.1078,0.000118,2]
[361658306,1747672240540,-624.61332077,0.00012,2]
[361658307,1747672240552,-644.53320013,0.00012,2]
[361658308,1747672240564,-285.84463971,0.00012,2]
[361658309,1747672240580,-296.82371763,0.00012,2]
[361658310,1747672240591,-1214.98276237,0.00012,2]
[361658311,1747672240603,-1629.89499954,0.00012,2]
[361658312,1747672241072,150.0,0.00014,5]
[361658320,1747672243162,-1064521.65727927,0.00012,2]
[361658321,1747672243175,-22689.9809719,0.00012,2]
[361658322,1747672243321,-986.40663306,0.00012,2]
[361658325,1747672246031,-547.29510888,0.00012,2]
[361658326,1747672246088,-2969.55706689,0.00012,2]
[361658327,1747672246099,-18546.2535872,0.00012,2]
[361658328,1747672246111,-4688.18034,0.00012,2]
[361658329,1747672246141,-12626.8,0.00012,2]
[361658330,1747672246152,-588.94,0.00012,2]
[361658331,1747672246250,-53654.83386893,0.00012,2]
[361658332,1747672246306,-433.97561987,0.00012,2]
[361658333,1747672246362,-353623.83547322,0.00012,2]
[361658634,1747672326429,-308.94641731,0.00011284,2]
[361658635,1747672329139,-151.92046913,0.00011284,2]
[361658636,1747672332780,-53.75771356,0.00011284,2]
[361658637,1747672440541,299.68,0.0001107,2]
[361658638,1747672497540,250.0,0.00010948,2]
[361658639,1747672528316,707.48,0.00010909,2]
[361658640,1747672566784,14430.21,0.000109,2]
[361658642,1747672628037,296.9,0.00010897,2]
[361658643,1747672641430,951.93,8.979e-05,2]
[361658644,1747672662510,4050.564974,0.00011186,2]
[361658645,1747672667048,173.15,0.00027397,120]
[361658646,1747672723808,165.78,0.00010898,2]
[361658651,1747672792861,-197.999999,0.00011243,2]
[361658652,1747672921479,177.11,0.00010885,2]
[361658653,1747672946045,159.5,0.00011204,2]
[361658654,1747672986017,800.56,0.00010876,2]
[361658655,1747673052132,200.0,0.00011007,2]
[361658656,1747673052274,200.0,0.00013586,5]
[361658662,1747673142565,154.875216,0.00027397,120]
[361658666,1747673157582,1300.67,0.00010829,2]
[361658667,1747673204580,843.62,0.0001081,2]
[361658668,1747673301610,1000.0,0.0001078,2]
[361658669,1747673354449,400.0,0.000111,4]
[361658670,1747673356533,800.0,0.000112,4]
[361658695,1747673432862,-315.06,0.00011243,2]
[361658716,1747673433056,-438.870001,0.00011243,2]
[361658718,1747673433065,-200.0,0.00011247,2]
[361658720,1747673433075,-250.0,0.00011251,2]
[361658722,1747673433084,-200.0,0.00011259,2]
[361658724,1747673433094,-859.59868521,0.000113,2]
[361658726,1747673433106,-1200.0,0.000113,4]
[361658728,1747673433116,-992.05406483,0.000114,4]
[361658737,1747673433197,-607.94593517,0.000114,4]
[361658739,1747673433207,-300.0,0.00011491,2]
[361658740,1747673433217,-142.00296483,0.00011492,2]
[361658748,1747673433283,-8873.28247407,0.00011492,2]
[361658750,1747673433292,-2100.0,0.000115,4]
[361658752,1747673433302,-500.0,0.00011589,2]
[361658754,1747673433312,-400.0,0.000116,4]
[361658756,1747673433322,-500.0,0.00011644,2]
[361658758,1747673433332,-1368.5109,0.00011688,2]
[361658760,1747673433341,-656.9262,0.00011688,2]
[361658762,1747673433351,-152.98653759,0.00011688,2]
[361658764,1747673433360,-207.4,0.00011693,2]
[361658766,1747673433370,-580.60992444,0.000117,2]
[361658768,1747673433380,-400.0,0.000117,4]
[361658770,1747673433390,-2500.0,0.000117,2]
[361658772,1747673433399,-625.2563,0.00011733,2]
[361658774,1747673433409,-150.0,0.00011743,2]
[361658776,1747673433419,-2113.6793978,0.0001176,2]
[361658778,1747673433430,-500.0,0.00011765,2]
[361658780,1747673433440,-200.0,0.00011765,2]
[361658782,1747673433449,-500.0,0.00011765,2]
[361658784,1747673433459,-247.04209957,0.00011765,2]
[361658786,1747673433468,-500.0,0.00011765,2]
[361658788,1747673433479,-500.0,0.00011765,2]
[361658790,1747673433489,-500.0,0.00011765,2]
[361658792,1747673433499,-500.0,0.00011765,2]
[361658794,1747673433508,-500.0,0.00011765,2]
[361658796,1747673433518,-500.0,0.00011765,2]
[361658798,1747673433527,-500.0,0.00011765,2]
[361658800,1747673433536,-500.0,0.00011765,2]
[361658802,1747673433546,-500.0,0.00011765,2]
[361658803,1747673433556,-500.0,0.00011765,2]
[361658805,1747673433565,-500.0,0.00011765,2]
[361658807,1747673433575,-500.0,0.00011765,2]
[361658809,1747673433586,-500.0,0.00011765,2]
[361658811,1747673433595,-500.0,0.00011765,2]
[361658813,1747673433605,-500.0,0.00011765,2]
[361658815,1747673433615,-408.4257118,0.00011765,2]
[361658817,1747673433624,-500.0,0.00011765,2]
[361658819,1747673433634,-9393.30537531,0.00011785,2]
[361658821,1747673433644,-17141.79965851,0.00011788,2]
[361658823,1747673433656,-67860.28738206,0.00011788,2]
[361659272,1747673438257,-151.46448843,0.00011788,2]
[361659274,1747673438267,-2134.93919157,0.000118,2]
[361659276,1747673438278,-16299.33220843,0.000118,2]
[361659277,1747673438286,-113358.5943,0.000118,2]
[361659278,1747673438295,-1000.0,0.000118,2]
[361659279,1747673438304,-2677.29561772,0.000118,2]
[361659280,1747673438313,-400.0,0.000118,4]
[361659281,1747673438322,-2677.29561771,0.00011811,2]
[361659282,1747673438331,-2677.29561771,0.00011822,2]
[361659283,1747673438339,-2677.29561771,0.00011833,2]
[361659284,1747673438348,-2677.29561771,0.00011844,2]
[361659285,1747673438357,-179.31844687,0.00011855,2]
[361659287,1747673438366,-2677.29561771,0.00011856,2]
[361659289,1747673438375,-500.0,0.00011863,2]
[361659291,1747673438384,-2677.29561771,0.00011867,2]
[361659293,1747673438394,-25996.21026877,0.00011875,2]
[361659295,1747673438403,-2677.29561771,0.00011878,2]
[361659297,1747673438413,-2677.29561771,0.00011889,2]
[361659299,1747673438422,-159.23449653,0.00011891,2]
[361659301,1747673438432,-159.23449645,0.00011892,2]
[361659303,1747673438441,-159.23449645,0.00011893,2]
[361659305,1747673438450,-159.23449645,0.00011894,2]
[361659307,1747673438459,-159.23449645,0.00011896,2]
[361659309,1747673438468,-150.0,0.00011896,2]
[361659311,1747673438478,-681.0,0.00011896,2]
[361659313,1747673438487,-159.23449645,0.00011897,2]
[361659315,1747673438496,-159.23449645,0.00011898,2]
[361659317,1747673438505,-159.23449645,0.00011899,2]
[361659319,1747673438513,-5000.0,0.000119,2]
[361659321,1747673438523,-660.25470963,0.000119,2]
[361659323,1747673438532,-451.15465074,0.000119,2]
[361659325,1747673438542,-159.23449645,0.000119,2]
[361659327,1747673438551,-1193.0,0.000119,2]
[361659329,1747673438561,-2677.29561771,0.000119,2]
[361659331,1747673438570,-400.0,0.000119,4]
[361659333,1747673438579,-166.26106578,0.000119,2]
[361659335,1747673438589,-507.84910292,0.000119,2]
[361659337,1747673438598,-2367.39770357,0.000119,2]
[361659339,1747673438607,-667.49807402,0.000119,2]
[361659341,1747673438616,-2000.0,0.00011904,2]
[361659343,1747673438625,-200.0,0.00011904,2]
[361659345,1747673438635,-150.0,0.00011923,2]
[361659347,1747673438644,-681.0,0.00011923,2]
[361659349,1747673438654,-1562.57436389,0.00011931,2]
[361659350,1747673438663,-681.0,0.00011951,2]
[361659354,1747673438672,-32535.0,0.00011973,2]
[361659356,1747673438681,-498.0,0.00011973,2]
[361659359,1747673438690,-500.0,0.00011973,2]
[361659362,1747673438699,-306.56440598,0.00011973,2]
[361659365,1747673438709,-500.0,0.00011973,2]
[361659367,1747673438718,-340.16328176,0.00011973,2]
[361659369,1747673438728,-500.0,0.00011973,2]
[361659371,1747673438737,-500.0,0.00011973,2]
[361659373,1747673438746,-500.0,0.00011973,2]
[361659375,1747673438755,-500.0,0.00011973,2]
[361659377,1747673438764,-618.30173804,0.00011973,2]
[361659379,1747673438773,-500.0,0.00011973,2]
[361659381,1747673438782,-500.0,0.00011973,2]
[361659383,1747673438791,-500.0,0.00011973,2]
[361659385,1747673438800,-681.0,0.00011978,2]
[361659387,1747673438809,-475.89063251,0.0001199,2]
[361659390,1747673438818,-475.89063251,0.0001199,2]
[361659392,1747673438827,-475.89063251,0.0001199,2]
[361659394,1747673438837,-16284.1403535,0.00011991,2]
[361659396,1747673438846,-3185.0384151,0.00011991,2]
[361659398,1747673438855,-840.5181082,0.00011991,2]
[361659400,1747673438864,-908.4078779,0.00011991,2]
[361659402,1747673438873,-517.6096519,0.00011991,2]
[361659404,1747673438882,-237.2283843,0.00011991,2]
[361659406,1747673438891,-88220.0938333,0.00011991,2]
[361659408,1747673438900,-88220.0938333,0.00011991,2]
[361659410,1747673438909,-155.316,0.00011999,2]
[361659412,1747673438918,-656.06997792,0.00012,2]
[361659414,1747673438927,-454517.68669289,0.00012,2]
[361659416,1747673438937,-160020.49427794,0.00012,2]
[361659462,1747673439355,-609.51914805,0.00012,2]
[361659464,1747673439366,-4423.47880346,0.00012,2]
[361659560,1747673440455,-1941.31261876,0.00012,2]
[361659565,1747673440513,-28800.0,0.00012,2]
[361659575,1747673440654,-857.50000015,0.00012,2]
[361659895,1747673443852,-863.95,0.00012,2]
[361659898,1747673443877,-66657.64910273,0.00012,2]
[361659901,1747673443889,-25186.3396482,0.00012,2]
[361659903,1747673443900,-1614.25543231,0.00012,2]
[361659908,1747673443940,-37404.73084977,0.00012,2]
[361659910,1747673443952,-283889.01709298,0.00012,2]
[361659913,1747673443963,-670701.93676635,0.00012,2]
[361659919,1747673444011,-459493.84145548,0.00012,2]
[361659921,1747673444023,-12730.26794058,0.00012,2]
[361659923,1747673444035,-202415.12589018,0.00012,2]
[361659933,1747673444119,-450.17991328,0.00012,2]
[361659935,1747673444131,-6831.34179056,0.00012,2]
[361660137,1747673446250,-909.55000001,0.00012,2]
[361660138,1747673446261,-204960.63208978,0.00012,2]
[361660139,1747673446273,-621.86625,0.00012,2]
[361660140,1747673446302,-101480.99844911,0.00012,2]
[361660141,1747673446314,-1386.39227981,0.00012,2]
[361660142,1747673446359,-8954.49626137,0.00012,2]
[361660159,1747673446626,-18225.77629069,0.00012,2]
[361660161,1747673446637,-871.37462561,0.00012,2]
[361660239,1747673486677,200.85114624,0.00027397,120]
[361660240,1747673547252,250.0,0.00011127,2]
[361660241,1747673577029,1000.0,0.00025,60]
[361660242,1747673917709,-168.96,0.00011605,2]
[361660243,1747673937354,296.9,0.00010941,2]
[361660244,1747673969771,170.24,0.00010913,2]
[361660247,1747674102595,172.0,0.00027397,120]
[361660249,1747674153592,506.0,0.00027397,120]
[361660250,1747674184414,150.0,0.00010959,2]
[361660251,1747674191775,856.73,9.011e-05,2]
[361660252,1747674235445,500.0,0.000112,4]
[361660253,1747674340030,185.23,0.00010881,2]
[361660254,1747674353876,1000.0,0.00010871,2]
[361660255,1747674378657,168.56,8.689e-05,2]
[361660256,1747674423621,500.0,0.000112,4]
[361660261,1747674548746,250.0,0.00010809,2]
[361660262,1747674563571,430.49,0.00010808,2]
[361660269,1747674631419,-167.51,0.00011255,2]
[361660270,1747674631429,-250.0,0.00011257,2]
[361660271,1747674631440,-200.0,0.0001126,2]
[361660272,1747674631449,-200.0,0.00011265,2]
[361660273,1747674631458,-282.7216088,0.00011275,2]
[361660274,1747674631557,-574.0083912,0.00011275,2]
[361660275,1747674631568,-1000.0,0.000113,4]
[361660276,1747674631578,-1500.0,0.000114,4]
[361660277,1747674631588,-72.20186645,0.00011473,2]
[361660278,1747674631602,-127.79813355,0.00011473,2]
[361660279,1747674631612,-260.01186645,0.000115,4]
[361660280,1747674631696,-1739.98813355,0.000115,4]
[361660281,1747674631706,-855.51694265,0.00011542,2]
[361660282,1747674631718,-1200.0,0.00011599,2]
[361660283,1747674631727,-300.0,0.00011599,2]
[361660284,1747674631737,-2600.0,0.000116,4]
[361660285,1747674631746,-191.13767811,0.00011646,2]
[361660286,1747674631755,-250.0,0.00011664,2]
[361660287,1747674631766,-500.0,0.00011671,2]
[361660288,1747674631775,-500.0,0.000117,4]
[361660289,1747674631785,-1029.0,0.000117,2]
[361660290,1747674631795,-993.64302569,0.0001176,2]
[361660291,1747674631808,-697.30049251,0.0001176,2]
[361660292,1747674631817,-25.13663307,0.0001178,2]
[361660299,1747674631895,-324.42936693,0.0001178,2]
[361660300,1747674631905,-4881.34134111,0.00011784,2]
[361660301,1747674631916,-391.86503,0.00011784,2]
[361660302,1747674631928,-3993.76999223,0.00011784,2]
[361660303,1747674631938,-1000.0,0.0001179,2]
[361660304,1747674631948,-9266.97636334,0.00011797,2]
[361660305,1747674631958,-317.7523,0.00011798,2]
[361660306,1747674631969,-226.8743,0.00011798,2]
[361660307,1747674631979,-270.7647,0.00011798,2]
[361660308,1747674631988,-803.18868534,0.000118,2]
[361660309,1747674631998,-500.0,0.000118,4]
[361660310,1747674632008,-803.18868531,0.00011811,2]
[361660311,1747674632017,-150.0,0.00011822,2]
[361660312,1747674632027,-803.18868531,0.00011822,2]
[361660313,1747674632037,-803.18868531,0.00011833,2]
[361660314,1747674632047,-803.18868531,0.00011844,2]
[361660315,1747674632056,-803.18868531,0.00011856,2]
[361660316,1747674632065,-500.0,0.00011863,2]
[361660317,1747674632075,-803.18868531,0.00011867,2]
[361660318,1747674632084,-155.98560456,0.00011873,2]
[361660319,1747674632093,-155.98560451,0.00011877,2]
[361660320,1747674632102,-376.59817566,0.00011878,2]
[361660321,1747674632143,-426.59050965,0.00011878,2]
[361660322,1747674632152,-22.73634552,0.00011879,2]
[361660325,1747674632164,-477.26365448,0.00011879,2]
[361660327,1747674632173,-500.0,0.00011879,2]
[361660329,1747674632182,-338.47668245,0.00011879,2]
[361660330,1747674632191,-500.0,0.00011879,2]
[361660332,1747674632200,-500.0,0.00011879,2]
[361660334,1747674632209,-376.7827975,0.00011879,2]
[361660336,1747674632220,-500.0,0.00011879,2]
[361660338,1747674632230,-24682.28039821,0.0001188,2]
[361660341,1747674632242,-65818.83846987,0.0001188,2]
[361660346,1747674632283,-85905.35412492,0.0001188,2]
[361660348,1747674632292,-155.98560451,0.00011881,2]
[361660350,1747674632302,-207.4,0.00011884,2]
[361660352,1747674632311,-155.98560451,0.00011885,2]
[361660354,1747674632320,-803.18868531,0.00011889,2]
[361660356,1747674632328,-159.23449653,0.0001189,2]
[361660358,1747674632337,-159.23449645,0.00011891,2]
[361660360,1747674632346,-159.23449645,0.00011893,2]
[361660362,1747674632355,-1000.0,0.00011893,2]
[361660364,1747674632364,-159.23449645,0.00011894,2]
[361660366,1747674632373,-159.23449645,0.00011895,2]
[361660368,1747674632382,-159.23449645,0.00011896,2]
[361660370,1747674632391,-159.23449645,0.00011898,2]
[361660372,1747674632400,-159.23449645,0.00011899,2]
[361660374,1747674632409,-5000.0,0.000119,2]
[361660376,1747674632418,-1448.9918,0.000119,2]
[361660378,1747674632427,-68721.01157197,0.000119,2]
[361660840,1747674637400,-9266.97636334,0.0001181,2]
[361660842,1747674637410,-155.98560451,0.00011888,2]
[361660844,1747674637419,-2976.01672803,0.000119,2]
[361660846,1747674637429,-1000.0,0.000119,2]
[361660848,1747674637438,-182.36325527,0.000119,2]
[361660850,1747674637447,-660.25470963,0.000119,2]
[361660851,1747674637457,-150.0,0.000119,2]
[361660852,1747674637467,-681.0,0.000119,2]
[361660853,1747674637478,-803.18868531,0.000119,2]
[361660854,1747674637488,-500.0,0.000119,4]
[361660856,1747674637499,-451.15465074,0.000119,2]
[361660857,1747674637510,-667.49807402,0.000119,2]
[361660859,1747674637519,-166.26106578,0.000119,2]
[361660861,1747674637529,-2367.39770357,0.000119,2]
[361660862,1747674637539,-507.84910292,0.000119,2]
[361660864,1747674637549,-159.23449645,0.000119,2]
[361660866,1747674637559,-2000.0,0.00011904,2]
[361660868,1747674637568,-200.0,0.00011904,2]
[361660870,1747674637579,-150.0,0.00011927,2]
[361660872,1747674637591,-681.0,0.00011927,2]
[361660874,1747674637600,-681.0,0.00011955,2]
[361660876,1747674637610,-32535.0,0.00011973,2]
[361660877,1747674637619,-498.0,0.00011973,2]
[361660878,1747674637629,-500.0,0.00011973,2]
[361660879,1747674637638,-500.0,0.00011973,2]
[361660880,1747674637647,-306.56440598,0.00011973,2]
[361660881,1747674637658,-340.16328176,0.00011973,2]
[361660882,1747674637667,-500.0,0.00011973,2]
[361660883,1747674637676,-500.0,0.00011973,2]
[361660884,1747674637686,-500.0,0.00011973,2]
[361660885,1747674637696,-500.0,0.00011973,2]
[361660886,1747674637705,-500.0,0.00011973,2]
[361660887,1747674637715,-500.0,0.00011973,2]
[361660888,1747674637729,-618.30173804,0.00011973,2]
[361660889,1747674637738,-681.0,0.00011982,2]
[361660890,1747674637748,-18428.7701045,0.0001199,2]
[361660891,1747674637758,-4440.1844271,0.0001199,2]
[361660892,1747674637767,-6440.64261696,0.0001199,2]
[361660893,1747674637779,-17337.74998993,0.0001199,2]
[361660894,1747674637791,-98398.02339301,0.0001199,2]
[361660895,1747674637801,-58564.7391598,0.0001199,2]
[361660896,1747674637810,-475.89063251,0.0001199,2]
[361660897,1747674637819,-475.89063251,0.0001199,2]
[361660898,1747674637829,-475.89063251,0.0001199,2]
[361660899,1747674637838,-269.41,0.00011991,2]
[361660900,1747674637848,-6130.938,0.00011998,2]
[361660901,1747674637857,-155.316,0.00011999,2]
[361660902,1747674637868,-656.06997792,0.00012,2]
[361660903,1747674637877,-345103.8636733,0.00012,2]
[361660904,1747674637887,-408332.06480629,0.00012,2]
[361660905,1747674637955,-537.13002854,0.00012,2]
[361660907,1747674638999,300.0,0.000112,4]
[361660914,1747674639518,-3000.0,0.00012,2]
[361660915,1747674639529,-2300.0,0.00012,2]
[361660916,1747674639541,-12605.00000045,0.00012,2]
[361660917,1747674639616,-3000.0,0.00012,2]
[361660918,1747674639732,-1443.61450617,0.00012,2]
[361660919,1747674639744,-11575.3,0.00012,2]
[361660920,1747674639757,-256.15532,0.00012,2]
[361660921,1747674639787,-1626.3681398,0.00012,2]
[361660922,1747674639800,-19667.02449995,0.00012,2]
[361660923,1747674639811,-1180.000015,0.00012,2]
[361660924,1747674639823,-210536.25672,0.00012,2]
[361660925,1747674639860,-4280.11583853,0.00012,2]
[361660926,1747674639871,-2570.36779982,0.00012,2]
[361660927,1747674639882,-2408.77255527,0.00012,2]
[361660935,1747674642569,-700.0,0.000113,4]
[361660936,1747674642579,-2997.7901143,0.00011823,2]
[361660943,1747674643005,-6269.18624904,0.00011823,2]
[361660944,1747674643016,-155.98560451,0.00011892,2]
[361660946,1747674643026,-160022.89812696,0.00012,2]
[361660949,1747674643037,-2776573.33088502,0.00012,2]
[361660959,1747674643088,-453.63518817,0.00012,2]
[361660964,1747674643112,-3473.27013643,0.00012,2]
[361660967,1747674643123,-12917.9828306,0.00012,2]
[361660974,1747674643151,-497.54494239,0.00012,2]
[361660977,1747674643162,-965.7389079,0.00012,2]
[361661222,1747674645478,-1100.0,0.000114,4]
[361661224,1747674645494,-1500.0,0.000115,4]
[361661226,1747674645513,-1743.02668055,0.00011836,2]
[361661231,1747674645551,-630.3377449,0.00011836,2]
[361661233,1747674645563,-597.1224615,0.00011836,2]
[361661235,1747674645574,-737.0468782,0.00011836,2]
[361661243,1747674645639,-5559.44259819,0.00011836,2]
[361661245,1747674645649,-155.98560451,0.00011896,2]
[361661246,1747674645658,-6441.13046492,0.00012,2]
[361661247,1747674645670,-20762.36981928,0.00012,2]
[361661248,1747674645725,-375.20039999,0.00012,2]
[361661249,1747674645737,-373.77361933,0.00012,2]
[361661252,1747674645762,-4744.05351506,0.00012,2]
[361661258,1747674645808,-300.06,0.00012,2]
[361661260,1747674645819,-20645.16869562,0.00012,2]
[361661265,1747674645859,-2124.99999612,0.00012,2]
[361661409,1747674732635,165.78,0.00010993,2]
[361661410,1747674851477,206.0,0.00011164,2]
[361661411,1747674955255,-200.0,0.00011571,2]
[361661412,1747674955280,-251.44509344,0.00011576,2]
[361661413,1747674955304,-200.0,0.00011585,2]
[361661414,1747674955328,-1900.0,0.000116,4]
[361661415,1747674955352,-200.0,0.00011676,2]
[361661416,1747674955376,-300.0,0.000117,4]
[361661417,1747674955399,-1352.7548146,0.0001176,2]
[361661418,1747674955422,-1200.0,0.00011779,2]
[361661419,1747674955444,-150.0,0.00011779,2]
[361661420,1747674955468,-300.0,0.00011779,2]
[361661421,1747674955493,-2074.5551,0.0001178,2]
[361661422,1747674955517,-12458.0308,0.0001178,2]
[361661423,1747674955541,-1000.0,0.0001178,2]
[361661424,1747674955563,-727.2952,0.0001178,2]
[361661425,1747674955586,-300.0,0.000118,4]
[361661426,1747674955611,-46826.4571,0.000118,2]
[361661427,1747674955635,-9266.97636334,0.00011848,2]
[361661428,1747674955663,-500.0,0.0001186,2]
[361661429,1747674956028,-239.2902,0.0001186,2]
[361661430,1747674956057,-500.0,0.0001186,2]
[361661431,1747674956084,-264.0869775,0.0001186,2]
[361661432,1747674956108,-9266.97636334,0.00011861,2]
[361661433,1747674956131,-9266.97636334,0.00011874,2]
[361661434,1747674956154,-9266.97636334,0.00011887,2]
[361661435,1747674956176,-5000.0,0.000119,2]
[361661436,1747674956200,-300.0,0.000119,4]
[361661437,1747674956223,-9266.97636334,0.000119,2]
[361661438,1747674956250,-1193.0,0.000119,2]
[361661439,1747674956274,-1578.26513572,0.000119,2]
[361661440,1747674956297,-508.01520848,0.000119,2]
[361661441,1747674956321,-155.98560451,0.000119,2]
[361661442,1747674956344,-2000.0,0.00011904,2]
[361661443,1747674956368,-200.0,0.00011904,2]
[361661444,1747674956392,-500.0,0.00011973,2]
[361661445,1747674956416,-500.0,0.00011973,2]
[361661446,1747674956443,-500.0,0.00011973,2]
[361661447,1747674956479,-500.0,0.00011973,2]
[361661448,1747674956517,-500.0,0.00011973,2]
[361661449,1747674956540,-500.0,0.00011973,2]
[361661450,1747674956563,-500.0,0.00011973,2]
[361661451,1747674956589,-25764.9162276,0.0001199,2]
[361661452,1747674956618,-17718.204079,0.0001199,2]
[361661453,1747674956641,-152926.6278362,0.0001199,2]
[361661454,1747674956666,-10545.5573647,0.00011992,2]
[361661455,1747674956691,-6146.8583597,0.00011992,2]
[361661456,1747674956716,-207.4,0.00011993,2]
[361661457,1747674956740,-179.31844687,0.00011999,2]
[361661458,1747674956763,-155.316,0.00011999,2]
[361661459,1747674956787,-741.63267693,0.00012,2]
[361661460,1747674956812,-510698.81052415,0.00012,2]
[361661461,1747674956836,-613657.9854339,0.00012,2]
[361661462,1747674958155,-1470456.69,0.00012,2]
[361661463,1747674960112,-1470456.69,0.00012,2]
[361661464,1747674965116,-372.006007,0.00011512,2]
[361661465,1747674965138,-166.26106577,0.000119,2]
[361661466,1747674965161,-300.0,0.00011999,2]
[361661467,1747674965185,-1469618.42292723,0.00012,2]
[361661468,1747675001562,203.0,0.00011164,2]
[361661471,1747675213799,832.93,9.139e-05,2]
[361661472,1747675274235,150.0,0.0001096,2]
[361661473,1747675456059,476.99,0.00010863,2]
[361661475,1747675483143,1000.0,0.00010863,2]